[Event "*** Titled Tuesday Blitz"]
[Site "Chess.com"]
[Date "2021.04.20"]
[Round "1"]
[White "Harald_Schmidt"]
[Black "ChessLover0108"]
[Result "0-1"]
[WhiteElo "2403"]
[BlackElo "2730"]
[TimeControl "180+1"]
[EndTime "10:05:53 PDT"]
[Termination "ChessLover0108 won by resignation"]

1. e4 {[%clk 0:03:00.6]} 1... d6 {[%clk 0:02:58]} 2. d4 {[%clk 0:02:55.8]} 2...
g6 {[%clk 0:02:58.9]} 3. Nc3 {[%clk 0:02:55.3]} 3... Nf6 {[%clk 0:02:53.1]} 4.
Be3 {[%clk 0:02:53.2]} 4... a6 {[%clk 0:02:52.6]} 5. f3 {[%clk 0:02:50.8]} 5...
b5 {[%clk 0:02:51.1]} 6. g4 {[%clk 0:02:50.7]} 6... h6 {[%clk 0:02:50.1]} 7. h4
{[%clk 0:02:49.6]} 7... Nfd7 {[%clk 0:02:50]} 8. Nce2 {[%clk 0:02:47.6]} 8...
Nb6 {[%clk 0:02:49.4]} 9. Ng3 {[%clk 0:02:45.8]} 9... N8d7 {[%clk 0:02:49.8]}
10. Bd3 {[%clk 0:02:42.9]} 10... Bb7 {[%clk 0:02:49.5]} 11. N1e2 {[%clk
0:02:42.5]} 11... Bg7 {[%clk 0:02:46.8]} 12. c3 {[%clk 0:02:42.3]} 12... Rc8
{[%clk 0:02:47]} 13. h5 {[%clk 0:02:41.7]} 13... g5 {[%clk 0:02:45.4]} 14. f4
{[%clk 0:02:27.8]} 14... gxf4 {[%clk 0:02:42.8]} 15. Nxf4 {[%clk 0:02:27.7]}
15... e6 {[%clk 0:02:42.4]} 16. Qf3 {[%clk 0:02:04]} 16... Qe7 {[%clk 0:02:38]}
17. O-O-O {[%clk 0:01:59.3]} 17... c5 {[%clk 0:02:37]} 18. d5 {[%clk 0:01:54.2]}
18... Ne5 {[%clk 0:02:28.5]} 19. Qg2 {[%clk 0:01:36.3]} 19... Nbc4 {[%clk
0:02:24.1]} 20. Bxc4 {[%clk 0:01:25.6]} 20... Nxc4 {[%clk 0:02:25]} 21. Rhe1
{[%clk 0:01:24.4]} 21... Nxe3 {[%clk 0:02:20.3]} 22. Rxe3 {[%clk 0:01:23.9]}
22... Qg5 {[%clk 0:02:20.8]} 23. Qd2 {[%clk 0:01:23.6]} 23... Qxf4 {[%clk
0:02:14.5]} 24. Rf1 {[%clk 0:01:22.5]} 24... Qg5 {[%clk 0:02:12.9]} 25. dxe6
{[%clk 0:01:18.6]} 25... fxe6 {[%clk 0:02:13.8]} 26. Qxd6 {[%clk 0:01:03.7]}
26... Qxe3+ {[%clk 0:01:59.7]} 27. Kb1 {[%clk 0:01:03.3]} 27... Bxe4+ {[%clk
0:01:57.9]} 28. Ka1 {[%clk 0:01:03.1]} 28... Bd5 {[%clk 0:01:56.6]} 29. Nf5
{[%clk 0:00:58]} 29... exf5 {[%clk 0:01:55.3]} 30. Qxd5 {[%clk 0:00:57.7]} 30...
Rf8 {[%clk 0:01:52.5]} 31. gxf5 {[%clk 0:00:51.9]} 31... Rf7 {[%clk 0:01:40.6]}
32. a4 {[%clk 0:00:48.7]} 32... Rd8 {[%clk 0:01:35]} 33. Qc6+ {[%clk 0:00:48]}
33... Kf8 {[%clk 0:01:34.2]} 34. f6 {[%clk 0:00:47.9]} 34... Kg8 {[%clk
0:01:27.4]} 35. Qg2 {[%clk 0:00:32.4]} 35... Qg5 {[%clk 0:01:20.5]} 0-1

[Event "*** Titled Tuesday Blitz"]
[Site "Chess.com"]
[Date "2021.04.20"]
[Round "1"]
[White "eldur16"]
[Black "FeketeBarika"]
[Result "1-0"]
[WhiteElo "2596"]
[BlackElo "2278"]
[TimeControl "180+1"]
[EndTime "10:05:56 PDT"]
[Termination "eldur16 won by resignation"]

1. d4 {[%clk 0:03:00.1]} 1... Nf6 {[%clk 0:02:57.9]} 2. c4 {[%clk 0:02:59.3]}
2... e6 {[%clk 0:02:58]} 3. Nf3 {[%clk 0:02:58.7]} 3... d5 {[%clk 0:02:56.9]} 4.
Nc3 {[%clk 0:02:57.5]} 4... Be7 {[%clk 0:02:57.1]} 5. Bg5 {[%clk 0:02:56.1]}
5... O-O {[%clk 0:02:58]} 6. e3 {[%clk 0:02:56.1]} 6... h6 {[%clk 0:02:55.1]} 7.
Bh4 {[%clk 0:02:55.3]} 7... Ne4 {[%clk 0:02:53.8]} 8. Bg3 {[%clk 0:02:53.7]}
8... c5 {[%clk 0:02:48.8]} 9. Bd3 {[%clk 0:02:49.2]} 9... Nxg3 {[%clk
0:02:45.1]} 10. hxg3 {[%clk 0:02:48.5]} 10... cxd4 {[%clk 0:02:44.6]} 11. exd4
{[%clk 0:02:40.6]} 11... dxc4 {[%clk 0:02:45.5]} 12. Bxc4 {[%clk 0:02:40]} 12...
Nc6 {[%clk 0:02:46]} 13. O-O {[%clk 0:02:28]} 13... Bf6 {[%clk 0:02:38.3]} 14.
Ne2 {[%clk 0:02:23.1]} 14... Nb4 {[%clk 0:02:37.1]} 15. Rc1 {[%clk 0:02:16.8]}
15... Nd5 {[%clk 0:02:37]} 16. Qd3 {[%clk 0:02:13.3]} 16... Bd7 {[%clk 0:02:31]}
17. Rfd1 {[%clk 0:02:11.3]} 17... Rc8 {[%clk 0:02:28.4]} 18. Ne5 {[%clk
0:02:03.9]} 18... Bc6 {[%clk 0:02:13]} 19. a3 {[%clk 0:02:00.6]} 19... a6 {[%clk
0:02:11.3]} 20. Ba2 {[%clk 0:01:56.6]} 20... Bb5 {[%clk 0:02:06.1]} 21. Qe4
{[%clk 0:01:55.3]} 21... Bxe2 {[%clk 0:02:03.5]} 22. Qxe2 {[%clk 0:01:54.4]}
22... Rxc1 {[%clk 0:02:01.8]} 23. Rxc1 {[%clk 0:01:53.9]} 23... Ne7 {[%clk
0:01:52.6]} 24. Qe4 {[%clk 0:01:48.7]} 24... Nf5 {[%clk 0:01:51.6]} 25. Nxf7
{[%clk 0:01:36.5]} 25... Rxf7 {[%clk 0:01:44.4]} 26. Bxe6 {[%clk 0:01:35.1]}
26... Nd6 {[%clk 0:01:41.3]} 27. Qd5 {[%clk 0:01:33.5]} 27... Qb6 {[%clk
0:01:38.1]} 28. b4 {[%clk 0:01:13.7]} 28... Kf8 {[%clk 0:01:06.4]} 29. Bxf7
{[%clk 0:01:11.9]} 29... Nxf7 {[%clk 0:01:07.3]} 30. Rc8+ {[%clk 0:01:10.8]}
30... Nd8 {[%clk 0:01:05]} 31. Qd7 {[%clk 0:00:59.7]} 31... Be7 {[%clk
0:00:55.9]} 32. d5 {[%clk 0:00:57.8]} 32... Kf7 {[%clk 0:00:47.2]} 33. d6 {[%clk
0:00:57.4]} 33... Qxd6 {[%clk 0:00:45.7]} 34. Qxd6 {[%clk 0:00:57]} 34... Bxd6
{[%clk 0:00:45.5]} 35. Rxd8 {[%clk 0:00:57]} 1-0

[Event "*** Titled Tuesday Blitz"]
[Site "Chess.com"]
[Date "2021.04.20"]
[Round "1"]
[White "kreonx"]
[Black "Nf3c5"]
[Result "0-1"]
[WhiteElo "2335"]
[BlackElo "2640"]
[TimeControl "180+1"]
[EndTime "10:06:03 PDT"]
[Termination "Nf3c5 won by resignation"]

1. e4 {[%clk 0:03:00.9]} 1... c6 {[%clk 0:02:57.3]} 2. d4 {[%clk 0:02:58.4]}
2... d5 {[%clk 0:02:57.5]} 3. exd5 {[%clk 0:02:57]} 3... cxd5 {[%clk 0:02:57.3]}
4. Bd3 {[%clk 0:02:57.4]} 4... Nc6 {[%clk 0:02:57.2]} 5. c3 {[%clk 0:02:56.8]}
5... Nf6 {[%clk 0:02:56.2]} 6. h3 {[%clk 0:02:54.6]} 6... g6 {[%clk 0:02:54.1]}
7. Nf3 {[%clk 0:02:52]} 7... Bg7 {[%clk 0:02:53.5]} 8. O-O {[%clk 0:02:51.1]}
8... Qc7 {[%clk 0:02:53.2]} 9. Re1 {[%clk 0:02:45.7]} 9... O-O {[%clk
0:02:53.3]} 10. Nbd2 {[%clk 0:01:45.6]} 10... Bf5 {[%clk 0:02:51.8]} 11. Bxf5
{[%clk 0:01:33.9]} 11... gxf5 {[%clk 0:02:52.7]} 12. Nb3 {[%clk 0:01:12.1]}
12... b6 {[%clk 0:02:31.9]} 13. Bg5 {[%clk 0:01:03.5]} 13... Ne4 {[%clk
0:02:29.2]} 14. Bh4 {[%clk 0:01:03.8]} 14... Kh8 {[%clk 0:02:26]} 15. Ng5 {[%clk
0:00:58.7]} 15... Bf6 {[%clk 0:02:05.9]} 16. Nxe4 {[%clk 0:00:57.7]} 16... Bxh4
{[%clk 0:02:04.4]} 17. Qh5 {[%clk 0:00:55.6]} 17... fxe4 {[%clk 0:01:55.7]} 18.
Qxh4 {[%clk 0:00:56]} 18... Rg8 {[%clk 0:01:56]} 19. Qh5 {[%clk 0:00:46.6]}
19... e6 {[%clk 0:01:53.1]} 20. Re3 {[%clk 0:00:32.4]} 20... Rg6 {[%clk
0:01:49.5]} 21. Rg3 {[%clk 0:00:31.8]} 21... Rag8 {[%clk 0:01:27.8]} 22. Rxg6
{[%clk 0:00:31.1]} 22... Rxg6 {[%clk 0:01:28.7]} 23. Rf1 {[%clk 0:00:28.7]}
23... Qf4 {[%clk 0:01:20.2]} 24. Qe2 {[%clk 0:00:26.9]} 24... Ne7 {[%clk
0:01:17.6]} 25. f3 {[%clk 0:00:23.5]} 25... e3 {[%clk 0:01:09.6]} 26. Re1 {[%clk
0:00:20.6]} 26... Nf5 {[%clk 0:01:08.6]} 27. g4 {[%clk 0:00:20]} 27... Qg3+
{[%clk 0:00:59.6]} 28. Qg2 {[%clk 0:00:19.2]} 28... Qxe1+ {[%clk 0:00:58.3]} 0-1

[Event "*** Titled Tuesday Blitz"]
[Site "Chess.com"]
[Date "2021.04.20"]
[Round "1"]
[White "oskariot"]
[Black "KacperPolOK"]
[Result "1-0"]
[WhiteElo "2674"]
[BlackElo "2370"]
[TimeControl "180+1"]
[EndTime "10:06:09 PDT"]
[Termination "oskariot won by resignation"]

1. e4 {[%clk 0:03:00.9]} 1... e6 {[%clk 0:02:56.8]} 2. d4 {[%clk 0:03:01]} 2...
d5 {[%clk 0:02:57]} 3. Nd2 {[%clk 0:03:01.6]} 3... Nf6 {[%clk 0:02:56.9]} 4. e5
{[%clk 0:03:01.5]} 4... Nfd7 {[%clk 0:02:57.6]} 5. f4 {[%clk 0:03:00.8]} 5... c5
{[%clk 0:02:56.8]} 6. c3 {[%clk 0:03:01.4]} 6... Nc6 {[%clk 0:02:55.2]} 7. Ndf3
{[%clk 0:03:01.7]} 7... Qb6 {[%clk 0:02:53.3]} 8. a3 {[%clk 0:02:57.4]} 8... a5
{[%clk 0:02:44.1]} 9. b3 {[%clk 0:02:56.8]} 9... f6 {[%clk 0:02:31.9]} 10. Bd3
{[%clk 0:02:55]} 10... Be7 {[%clk 0:02:19.4]} 11. h4 {[%clk 0:02:25.8]} 11...
Nf8 {[%clk 0:01:45.9]} 12. Ne2 {[%clk 0:02:13.3]} 12... Bd7 {[%clk 0:01:42.5]}
13. h5 {[%clk 0:02:05.8]} 13... O-O-O {[%clk 0:01:39.3]} 14. Be3 {[%clk
0:01:41.5]} 14... Kb8 {[%clk 0:01:23.8]} 15. h6 {[%clk 0:01:38.1]} 15... gxh6
{[%clk 0:00:59.9]} 16. exf6 {[%clk 0:01:36.8]} 16... Bxf6 {[%clk 0:01:00.5]} 17.
dxc5 {[%clk 0:01:33.5]} 17... Qc7 {[%clk 0:01:00.5]} 18. Qd2 {[%clk 0:01:19.6]}
18... e5 {[%clk 0:00:56.7]} 19. fxe5 {[%clk 0:01:18]} 19... Nxe5 {[%clk
0:00:56.6]} 20. Nxe5 {[%clk 0:01:07.4]} 20... Bxe5 {[%clk 0:00:56.6]} 21. Rxh6
{[%clk 0:01:00.9]} 21... Bg3+ {[%clk 0:00:33.9]} 22. Nxg3 {[%clk 0:00:58.2]}
22... Qxg3+ {[%clk 0:00:34.5]} 23. Kd1 {[%clk 0:00:57.7]} 23... Qg7 {[%clk
0:00:20.6]} 24. Bd4 {[%clk 0:00:47.4]} 24... Qg4+ {[%clk 0:00:19]} 25. Be2
{[%clk 0:00:46.6]} 25... Qf5 {[%clk 0:00:16.7]} 26. Bxh8 {[%clk 0:00:43.4]} 1-0

[Event "*** Titled Tuesday Blitz"]
[Site "Chess.com"]
[Date "2021.04.20"]
[Round "1"]
[White "Kretov_Evgenij"]
[Black "narutosmith"]
[Result "1-0"]
[WhiteElo "2635"]
[BlackElo "2329"]
[TimeControl "180+1"]
[EndTime "10:06:11 PDT"]
[Termination "Kretov_Evgenij won by checkmate"]

1. d4 {[%clk 0:03:00.4]} 1... Nf6 {[%clk 0:02:59.5]} 2. c4 {[%clk 0:03:00.7]}
2... e6 {[%clk 0:02:59.9]} 3. Nc3 {[%clk 0:03:00.7]} 3... Bb4 {[%clk 0:03:00.2]}
4. Bg5 {[%clk 0:03:00.6]} 4... c5 {[%clk 0:02:56.9]} 5. d5 {[%clk 0:03:00.4]}
5... d6 {[%clk 0:02:54.3]} 6. e3 {[%clk 0:03:00.2]} 6... exd5 {[%clk 0:02:33.5]}
7. cxd5 {[%clk 0:02:59.7]} 7... Nbd7 {[%clk 0:02:34]} 8. Bd3 {[%clk 0:02:59.6]}
8... O-O {[%clk 0:02:33.3]} 9. Ne2 {[%clk 0:02:59.7]} 9... a6 {[%clk 0:02:30.9]}
10. O-O {[%clk 0:02:59.7]} 10... b5 {[%clk 0:02:30.5]} 11. h3 {[%clk 0:02:57]}
11... h6 {[%clk 0:02:30.1]} 12. Bh4 {[%clk 0:02:56.6]} 12... Re8 {[%clk
0:02:29.3]} 13. a3 {[%clk 0:02:54.3]} 13... Ba5 {[%clk 0:02:28.5]} 14. e4 {[%clk
0:02:46.8]} 14... Qc7 {[%clk 0:02:19.6]} 15. f4 {[%clk 0:02:45.2]} 15... b4
{[%clk 0:02:08.6]} 16. axb4 {[%clk 0:02:41.1]} 16... cxb4 {[%clk 0:02:09.5]} 17.
e5 {[%clk 0:02:38]} 17... dxe5 {[%clk 0:02:03.4]} 18. d6 {[%clk 0:02:30.5]}
18... Bb6+ {[%clk 0:01:23.5]} 19. Kh1 {[%clk 0:02:27.9]} 19... Qb8 {[%clk
0:01:23.7]} 20. Bxf6 {[%clk 0:02:05.8]} 20... Nxf6 {[%clk 0:01:22.5]} 21. fxe5
{[%clk 0:02:03.9]} 21... Nd7 {[%clk 0:00:51.2]} 22. Nd5 {[%clk 0:01:54.1]} 22...
Nxe5 {[%clk 0:00:50.2]} 23. Ne7+ {[%clk 0:01:50.5]} 23... Kh8 {[%clk 0:00:49.9]}
24. Be4 {[%clk 0:01:49.2]} 24... Bb7 {[%clk 0:00:46.1]} 25. Bxb7 {[%clk
0:01:38.2]} 25... Qxb7 {[%clk 0:00:47]} 26. Nf4 {[%clk 0:01:37.3]} 26... Rad8
{[%clk 0:00:39.6]} 27. Nf5 {[%clk 0:01:36.9]} 27... Qe4 {[%clk 0:00:32]} 28. Qh5
{[%clk 0:01:33.2]} 28... Nd3 {[%clk 0:00:11.9]} 29. Nxd3 {[%clk 0:01:32.4]}
29... Qxd3 {[%clk 0:00:12.2]} 30. Qxf7 {[%clk 0:01:31.7]} 30... Rg8 {[%clk
0:00:12.8]} 31. Rad1 {[%clk 0:01:26.6]} 31... Qe2 {[%clk 0:00:10.6]} 32. Ne7
{[%clk 0:01:23.8]} 32... Rgf8 {[%clk 0:00:10.4]} 33. Ng6+ {[%clk 0:01:23.3]}
33... Kh7 {[%clk 0:00:09.2]} 34. Nxf8+ {[%clk 0:01:23.4]} 34... Rxf8 {[%clk
0:00:09.3]} 35. Qxf8 {[%clk 0:01:23.5]} 35... Be3 {[%clk 0:00:03.8]} 36. Qf5+
{[%clk 0:01:21.5]} 36... Kh8 {[%clk 0:00:03.4]} 37. Qd3 {[%clk 0:01:21]} 37...
Qxb2 {[%clk 0:00:01.5]} 38. Rf8# {[%clk 0:01:20.5]} 1-0

[Event "*** Titled Tuesday Blitz"]
[Site "Chess.com"]
[Date "2021.04.20"]
[Round "1"]
[White "Abund"]
[Black "davigator"]
[Result "1-0"]
[WhiteElo "2730"]
[BlackElo "2406"]
[TimeControl "180+1"]
[EndTime "10:06:12 PDT"]
[Termination "Abund won by resignation"]

1. e4 {[%clk 0:02:48.6]} 1... c5 {[%clk 0:02:59]} 2. Nf3 {[%clk 0:02:48.2]} 2...
Nc6 {[%clk 0:02:58.7]} 3. Bb5 {[%clk 0:02:47.4]} 3... g6 {[%clk 0:02:58]} 4. O-O
{[%clk 0:02:47.1]} 4... Bg7 {[%clk 0:02:57.2]} 5. c3 {[%clk 0:02:47.2]} 5... Nf6
{[%clk 0:02:56.4]} 6. Re1 {[%clk 0:02:47.1]} 6... O-O {[%clk 0:02:55.5]} 7. d4
{[%clk 0:02:47.3]} 7... cxd4 {[%clk 0:02:55.2]} 8. cxd4 {[%clk 0:02:48.2]} 8...
d5 {[%clk 0:02:54.9]} 9. e5 {[%clk 0:02:47.1]} 9... Ne4 {[%clk 0:02:54.8]} 10.
Bxc6 {[%clk 0:02:47.4]} 10... bxc6 {[%clk 0:02:54.4]} 11. Be3 {[%clk 0:02:47.2]}
11... f6 {[%clk 0:02:53.7]} 12. Nbd2 {[%clk 0:02:33.5]} 12... Bg4 {[%clk
0:02:52.9]} 13. Qc2 {[%clk 0:02:21.2]} 13... Nxd2 {[%clk 0:02:50.3]} 14. Nxd2
{[%clk 0:02:16.1]} 14... fxe5 {[%clk 0:02:50.1]} 15. dxe5 {[%clk 0:01:54.4]}
15... Qd7 {[%clk 0:02:26.8]} 16. h3 {[%clk 0:01:38]} 16... Bf5 {[%clk
0:02:25.3]} 17. Qc3 {[%clk 0:01:36.3]} 17... h6 {[%clk 0:02:16.2]} 18. Nb3
{[%clk 0:01:34.7]} 18... g5 {[%clk 0:02:14.3]} 19. Nc5 {[%clk 0:01:33.2]} 19...
Qc7 {[%clk 0:02:12.5]} 20. Bd4 {[%clk 0:01:33.1]} 20... a5 {[%clk 0:02:04.8]}
21. Rac1 {[%clk 0:01:30.9]} 21... Qc8 {[%clk 0:01:52.2]} 22. e6 {[%clk
0:01:28.6]} 22... Bxd4 {[%clk 0:01:48.6]} 23. Qxd4 {[%clk 0:01:29.5]} 23... Rf6
{[%clk 0:01:48.5]} 24. Nd7 {[%clk 0:01:25]} 24... Rxe6 {[%clk 0:01:46.6]} 25.
Nb6 {[%clk 0:01:15.4]} 25... Qb8 {[%clk 0:01:36.8]} 26. Rxe6 {[%clk 0:01:11.3]}
26... Bxe6 {[%clk 0:01:35.6]} 27. Rxc6 {[%clk 0:01:08.1]} 27... Bf7 {[%clk
0:01:26.1]} 28. Nxa8 {[%clk 0:01:00.7]} 28... e5 {[%clk 0:01:26.6]} 29. Qc5
{[%clk 0:00:54.9]} 29... Qxb2 {[%clk 0:01:25.9]} 30. Rc8+ {[%clk 0:00:52.5]}
30... Kh7 {[%clk 0:01:25.7]} 31. Qc2+ {[%clk 0:00:51.7]} 31... Qxc2 {[%clk
0:01:24.1]} 32. Rxc2 {[%clk 0:00:52.6]} 32... d4 {[%clk 0:01:24.4]} 33. Rc7
{[%clk 0:00:53.5]} 33... Kg6 {[%clk 0:01:24.4]} 34. Nb6 {[%clk 0:00:52.4]} 34...
Bxa2 {[%clk 0:01:24.1]} 35. Kf1 {[%clk 0:00:52]} 35... Bb3 {[%clk 0:01:23.1]}
36. Ke2 {[%clk 0:00:50.5]} 36... a4 {[%clk 0:01:23.5]} 37. Ra7 {[%clk
0:00:50.6]} 37... e4 {[%clk 0:01:23.2]} 38. Nxa4 {[%clk 0:00:48.8]} 38... Bc4+
{[%clk 0:01:23.9]} 39. Ke1 {[%clk 0:00:48.5]} 39... Kf5 {[%clk 0:01:19.3]} 40.
Nb6 {[%clk 0:00:47.6]} 40... Be6 {[%clk 0:01:16.7]} 41. Ra5+ {[%clk 0:00:45.5]}
41... Kf4 {[%clk 0:01:16.2]} 42. Nd5+ {[%clk 0:00:45.7]} 42... Ke5 {[%clk
0:01:13.3]} 43. Nc7+ {[%clk 0:00:41.3]} 43... Kd6 {[%clk 0:01:12.5]} 44. Ra6+
{[%clk 0:00:39.3]} 44... Kxc7 {[%clk 0:01:12.3]} 45. Rxe6 {[%clk 0:00:40.2]} 1-0

[Event "*** Titled Tuesday Blitz"]
[Site "Chess.com"]
[Date "2021.04.20"]
[Round "1"]
[White "svilson23"]
[Black "FoggyMorning"]
[Result "1-0"]
[WhiteElo "2246"]
[BlackElo "2543"]
[TimeControl "180+1"]
[EndTime "10:06:14 PDT"]
[Termination "svilson23 won by resignation"]

1. d4 {[%clk 0:02:59.8]} 1... Nf6 {[%clk 0:02:59.3]} 2. Bg5 {[%clk 0:02:58.6]}
2... c5 {[%clk 0:02:58.5]} 3. Bxf6 {[%clk 0:02:57.7]} 3... exf6 {[%clk
0:02:59.4]} 4. d5 {[%clk 0:02:58.3]} 4... f5 {[%clk 0:02:58.6]} 5. Nc3 {[%clk
0:02:55.9]} 5... d6 {[%clk 0:02:57.1]} 6. e3 {[%clk 0:02:55.5]} 6... g6 {[%clk
0:02:57.6]} 7. Nf3 {[%clk 0:02:49.5]} 7... Bg7 {[%clk 0:02:58]} 8. h4 {[%clk
0:02:37.6]} 8... h5 {[%clk 0:02:54.8]} 9. Bc4 {[%clk 0:02:32.3]} 9... O-O {[%clk
0:02:54.2]} 10. O-O {[%clk 0:02:32.3]} 10... a6 {[%clk 0:02:51]} 11. a4 {[%clk
0:02:31.8]} 11... Nd7 {[%clk 0:02:50.9]} 12. a5 {[%clk 0:02:30.5]} 12... Ne5
{[%clk 0:02:44.4]} 13. Nxe5 {[%clk 0:02:29.2]} 13... Bxe5 {[%clk 0:02:45.3]} 14.
g3 {[%clk 0:02:21]} 14... Bd7 {[%clk 0:02:27.6]} 15. Qd3 {[%clk 0:02:18]} 15...
Re8 {[%clk 0:02:25.4]} 16. Kg2 {[%clk 0:02:15.3]} 16... Bg7 {[%clk 0:02:16.1]}
17. Rfe1 {[%clk 0:02:15.1]} 17... Qf6 {[%clk 0:02:14.7]} 18. Rab1 {[%clk
0:02:12.5]} 18... Re7 {[%clk 0:02:13.9]} 19. Ne2 {[%clk 0:02:09.3]} 19... Re4
{[%clk 0:02:09]} 20. b4 {[%clk 0:02:07.6]} 20... cxb4 {[%clk 0:01:58.6]} 21.
Rxb4 {[%clk 0:02:08.5]} 21... Rc8 {[%clk 0:01:57.5]} 22. Rxb7 {[%clk 0:01:53.1]}
22... Rexc4 {[%clk 0:01:12.3]} 23. Rxd7 {[%clk 0:01:53.6]} 23... R8c5 {[%clk
0:01:04.9]} 24. Rb1 {[%clk 0:01:42.1]} 24... Rxc2 {[%clk 0:00:53.8]} 25. Nd4
{[%clk 0:01:42.1]} 25... Ra2 {[%clk 0:00:49.3]} 26. Qxa6 {[%clk 0:01:39.3]}
26... Rxd5 {[%clk 0:00:46.1]} 27. Qa8+ {[%clk 0:01:28]} 27... Kh7 {[%clk
0:00:46]} 28. Qxd5 {[%clk 0:01:27.7]} 28... Rd2 {[%clk 0:00:35.7]} 29. Qxf7
{[%clk 0:01:19.8]} 29... Qxf7 {[%clk 0:00:22.4]} 30. Rxf7 {[%clk 0:01:19]} 30...
Kg8 {[%clk 0:00:23]} 31. Rd7 {[%clk 0:01:11.4]} 31... f4 {[%clk 0:00:20.4]} 32.
gxf4 {[%clk 0:01:05]} 32... Bf8 {[%clk 0:00:19.3]} 33. a6 {[%clk 0:01:01.7]}
33... Ra2 {[%clk 0:00:19.2]} 34. a7 {[%clk 0:01:00.4]} 34... g5 {[%clk
0:00:19.7]} 35. Rb8 {[%clk 0:00:58.5]} 1-0

[Event "*** Titled Tuesday Blitz"]
[Site "Chess.com"]
[Date "2021.04.20"]
[Round "1"]
[White "Qvalda"]
[Black "Oleksandr_Bortnyk"]
[Result "0-1"]
[WhiteElo "2460"]
[BlackElo "2935"]
[TimeControl "180+1"]
[EndTime "10:06:19 PDT"]
[Termination "Oleksandr_Bortnyk won on time"]

1. e4 {[%clk 0:02:59.3]} 1... Nf6 {[%clk 0:02:56.6]} 2. e5 {[%clk 0:02:58.2]}
2... Nd5 {[%clk 0:02:57]} 3. d4 {[%clk 0:02:58.9]} 3... d6 {[%clk 0:02:57.4]} 4.
Nf3 {[%clk 0:02:57.8]} 4... dxe5 {[%clk 0:02:57.1]} 5. Nxe5 {[%clk 0:02:57]}
5... c6 {[%clk 0:02:57.4]} 6. Be2 {[%clk 0:02:56.1]} 6... Bf5 {[%clk 0:02:57.7]}
7. O-O {[%clk 0:02:52.2]} 7... Nd7 {[%clk 0:02:57.7]} 8. Nf3 {[%clk 0:02:49.4]}
8... e6 {[%clk 0:02:58]} 9. a3 {[%clk 0:02:47.9]} 9... Bd6 {[%clk 0:02:57.8]}
10. c4 {[%clk 0:02:48.1]} 10... N5f6 {[%clk 0:02:58]} 11. Nc3 {[%clk 0:02:34.6]}
11... O-O {[%clk 0:02:52.8]} 12. h3 {[%clk 0:02:30]} 12... h6 {[%clk 0:02:50.3]}
13. Be3 {[%clk 0:02:29.2]} 13... Re8 {[%clk 0:02:47.3]} 14. Qd2 {[%clk
0:02:23.6]} 14... e5 {[%clk 0:02:37.4]} 15. d5 {[%clk 0:02:14.7]} 15... Nc5
{[%clk 0:02:19.4]} 16. Rad1 {[%clk 0:01:45.7]} 16... Nb3 {[%clk 0:02:16.1]} 17.
Qe1 {[%clk 0:01:45]} 17... Bc2 {[%clk 0:02:14.6]} 18. dxc6 {[%clk 0:01:23.9]}
18... bxc6 {[%clk 0:02:12.5]} 19. Rc1 {[%clk 0:00:57.1]} 19... Nxc1 {[%clk
0:02:10.1]} 20. Qxc1 {[%clk 0:00:58]} 20... Bg6 {[%clk 0:02:04.2]} 21. Rd1
{[%clk 0:00:53.7]} 21... Qc7 {[%clk 0:02:03.9]} 22. c5 {[%clk 0:00:53.7]} 22...
Bf8 {[%clk 0:02:03.5]} 23. b4 {[%clk 0:00:53]} 23... a5 {[%clk 0:01:57.1]} 24.
b5 {[%clk 0:00:47.1]} 24... cxb5 {[%clk 0:01:58]} 25. Nxb5 {[%clk 0:00:46]}
25... Qc6 {[%clk 0:01:57.9]} 26. Nd6 {[%clk 0:00:40.2]} 26... Bxd6 {[%clk
0:01:56.1]} 27. Rxd6 {[%clk 0:00:40.9]} 27... Qa4 {[%clk 0:01:55.3]} 28. Bxh6
{[%clk 0:00:38.9]} 28... Ne4 {[%clk 0:01:51.3]} 29. Bd1 {[%clk 0:00:20.7]} 29...
Qb5 {[%clk 0:01:47.8]} 30. Rb6 {[%clk 0:00:15.2]} 30... Qxc5 {[%clk 0:01:47.1]}
31. Qxc5 {[%clk 0:00:15.4]} 31... Nxc5 {[%clk 0:01:48]} 32. Be3 {[%clk
0:00:15.7]} 32... Nd3 {[%clk 0:01:37.2]} 33. Bb3 {[%clk 0:00:08.5]} 33... Rab8
{[%clk 0:01:33.2]} 34. Rxg6 {[%clk 0:00:07.6]} 34... Rxb3 {[%clk 0:01:33.2]} 35.
Rg4 {[%clk 0:00:03.5]} 35... Rxa3 {[%clk 0:01:31]} 36. Bh6 {[%clk 0:00:03.4]}
36... g6 {[%clk 0:01:20.4]} 37. h4 {[%clk 0:00:03.3]} 37... Ra1+ {[%clk
0:01:19.8]} 38. Kh2 {[%clk 0:00:02.7]} 38... Nxf2 {[%clk 0:01:20.5]} 39. Rc4
{[%clk 0:00:01.3]} 39... e4 {[%clk 0:01:15.2]} 0-1